Cogmind - Beta 14 @@@ ROGUE MODE // 2024.09.16 @ 16:25:12 Player: rice Result: Self-destructed Performance ------------- Evolutions (2) 1000 Regions Visited (5) 1000 Robots Destroyed (29) 145 Value Destroyed (512) 512 Prototype IDs (24) 480 Alien Tech Used (0) 0 Bonus (184) 184 TOTAL SCORE: 3321 Bonus ------- Follower Combat Kills 184 Cogmind --------- Core Integrity 475/550 Matter 290/300 Energy 93/100 System Corruption 0% Temperature Cool (0) Movement Hovering (217) Ox2 Location -8/Materials Parts ------- > --- POWER (1) -------- (None) > --- PROPULSION (3) --- Combat Airjet Combat Airjet > --- UTILITY (4) ------ High-capacity Storage Unit Terrain Scanner > --- WEAPON (3) ------- Spread Laser Powered Hammer Scythe > --- INVENTORY (20) --- Makeshift Power Source Heat Sink Large Storage Unit Large Matter Pod (150) Signal Interpreter Terrain Scanner Launcher Guidance Computer Hardened Light Armor Plating Hardened Light Armor Plating Hardened Light Armor Plating Bomb Drone Bay (16/16) Heavy Rocket Launcher Field Lobotomy Kit (5) Peak State ------------ > --- POWER ------------ Light Angular Momentum Engine > --- PROPULSION ------- Combat Airjet Combat Airjet > --- UTILITY ---------- High-capacity Storage Unit Improved Light Armor Plating Bomb Drone Bay > --- WEAPON ----------- Spread Laser > --- INVENTORY -------- Makeshift Power Source Heat Sink Large Storage Unit Large Matter Pod Signal Interpreter Terrain Scanner Terrain Scanner Launcher Guidance Computer Hardened Light Armor Plating Hardened Light Armor Plating Hardened Light Armor Plating Heavy Rocket Launcher Field Lobotomy Kit Powered Hammer [Rating: 38] Favorites ----------- Power Light Ion Engine Engine Light Ion Engine Propulsion Light Treads Treads Light Treads Leg Aluminum Leg Hover Unit Combat Airjet Utility Hardened Light Armor Plating Device Terrain Scanner Storage High-capacity Storage Unit Protection Hardened Light Armor Plating Weapon Spread Laser Energy Gun Spread Laser Ballistic Gun Assault Rifle Launcher Grenade Launcher Impact Weapon Powered Hammer Slashing Weapon Scythe Build | -11 -10 -10 -10 -9 -8 ------- Run | Yrd Mat Min Exi Min Mat Slots Evolved 4 | . . . . . 4 Power . | . . . . . . Propulsion 1 | . . . . . 1 Utility 2 | . . . . . 2 Weapon 1 | . . . . . 1 Parts Attached 36 | 6 13 2 2 8 5 Power 5 | 1 1 1 1 1 . Engine 5 | 1 1 1 1 1 . Core . | . . . . . . Reactor . | . . . . . . Propulsion 8 | 2 3 . . 3 . Treads 2 | . 2 . . . . Leg 3 | 2 1 . . . . Wheel . | . . . . . . Hover 3 | . . . . 3 . Flight . | . . . . . . Utility 11 | 1 5 . . 2 3 Device 5 | . 2 . . . 3 Storage 3 | 1 2 . . . . Processor . | . . . . . . Hackware . | . . . . . . Protection 3 | . 1 . . 2 . Artifact . | . . . . . . Weapon 12 | 2 4 1 1 2 2 Energy Gun 4 | 1 1 . . 2 . Energy Cannon . | . . . . . . Ballistic Gun 5 | 1 3 . 1 . . Ballistic Cannon . | . . . . . . Launcher 1 | . . 1 . . . Special Weapon . | . . . . . . Impact Weapon 1 | . . . . . 1 Slashing Weapon 1 | . . . . . 1 Piercing Weapon . | . . . . . . Special Melee Weapon . | . . . . . . Unidentified Prototypes 1 | . . . . . 1 Parts Lost 7 | . . . . 4 3 Power 1 | . . . . . 1 Propulsion 1 | . . . . 1 . Utility 3 | . . . . 1 2 Weapon 2 | . . . . 2 . Highest Loss Streak 3 | . . . . 3 2 To Critical Strikes . | . . . . . . Average Slot Usage (%) 98 | . 99 100 100 98 68 Engine 13 | . 14 14 14 14 6 Treads 20 | . 5 28 28 24 . Leg 6 | . 22 . . . . Hover 1 | . . . . 2 18 Device 2 | . 6 . . . 12 Storage 13 | . 14 14 14 14 9 Protection 11 | . 7 14 14 14 4 Energy Gun 12 | . 8 14 14 16 9 Ballistic Gun 10 | . 19 4 8 10 . Launcher 4 | . . 9 5 . . Peak Build Rating 38 | 6 10 12 16 31 38 Average Rating 12 | 4 8 10 13 19 28 On Entrance 11 | . 6 10 11 16 26 Naked Turns . | . . . . . . Heaviest Build 62 | 13 55 54 55 62 61 Greatest Support 40 | 20 40 40 40 40 24 Greatest Overweight (x) 4 | . 2 1 1 4 2 Average Overweight (x) . | . . 1 1 1 1 Largest Inventory Capacity 20 | 8 20 20 20 20 20 Average Capacity 18 | 6 13 20 20 20 20 Most Carried 18 | 3 13 15 16 18 16 Average Carried 12 | 2 9 12 14 16 14 Final Capacity 20 | 8 20 20 20 20 20 Final Carried 16 | 3 12 14 16 16 14 Class Distribution -------------------- 96% | Mutant 3% | Scavenger-Mutant Dominant Class ---------------- Mutant | -10/Materials Mutant | -10/Mines Mutant | -10/Exiles Mutant | -9/Mines Scavenger-Mutant | -8/Materials Resources | -11 -10 -10 -10 -9 -8 ----------- Run | Yrd Mat Min Exi Min Mat Matter Collected 889 | 241 180 245 . 183 40 Remotely . | . . . . . . Salvage Created 563 | . 194 136 . 86 147 Parts 57 | . 18 19 . 13 7 Haulers Intercepted . | . . . . . . Recyclers Shooed 2 | . 1 . . . 1 Parts Field Recycled . | . . . . . . Retrieved Matter . | . . . . . . Parts Self-Destructed . | . . . . . . Prevented . | . . . . . . Kills | -11 -10 -10 -10 -9 -8 ------- Run | Yrd Mat Min Exi Min Mat Combat Hostiles Destroyed 22 | . 5 10 . 3 4 Melee 1 | . . . . . 1 Guns 13 | . 5 5 . 3 . AOE 5 | . . 5 . . . Classes Destroyed 9 | . 4 1 . 3 1 Worker 2 | . . 2 . . . Tunneler 1 | . . . . 1 . Operator 1 | . 1 . . . . Watcher 4 | . 3 . . . 1 Swarmer 15 | . 3 10 . . 2 Grunt 2 | . 2 . . . . Sentry 2 | . . . . . 2 Demolisher 2 | . . . . 2 . Assembled 1 | . . . . 1 . Best Kill Streak 4 | . 3 4 . 2 3 Combat Bots Only 3 | . 3 3 . 2 2 Max Kills in Single Turn 3 | . 1 3 . 1 1 Gunslinging . | . . . . . . Exploded 3 | . . 3 . . . Melee 1 | . . . . . 1 Uniques/NPCs Destroyed . | . . . . . . Combat | -11 -10 -10 -10 -9 -8 -------- Run | Yrd Mat Min Exi Min Mat Hostile Shots Fired 140 | . 36 28 . 28 48 Missed 36 | . 11 5 . 11 9 Damage Taken 1631 | . 206 190 . 836 399 Core 174 | . 9 45 . 45 75 Absorbed by Shields 42 | . . . . . 42 Core Remaining (%) 80 | 100 . . . 60 . Volleys Fired 50 | . 25 14 . 11 . Largest 2 | . 2 2 . 2 . Hottest 140 | . 85 85 . 140 . Shots Fired 95 | . 49 24 . 22 . Gun 91 | . 49 20 . 22 . Cannon . | . . . . . . Launcher 4 | . . 4 . . . Special . | . . . . . . Kinetic 53 | . 37 10 . 6 . Thermal 38 | . 12 10 . 16 . Explosive 4 | . . 4 . . . Electromagnetic . | . . . . . . Robot Hit Streak 5 | . 5 5 . 4 . Robot Miss Streak 7 | . 7 4 . 4 . Penetration Max . | . . . . . . Secondary Targets 1 | . . . . 1 . Max Gunslinging Chain 1 | . . . . 1 . Shots Hit Robots 68 | . 29 11 . 16 12 Core Hits 52 | . 17 21 . 14 . Critical Kills . | . . . . . . Critical Parts Destroyed 3 | . . . . . 3 Critical Strikes 3 | . . . . . 3 Smash 3 | . . . . . 3 Melee Attacks 16 | . . . . . 16 Impact 13 | . . . . . 13 Slashing 3 | . . . . . 3 Piercing . | . . . . . . Sneak Attacks 2 | . . . . . 2 Combat Hostiles . | . . . . . . Follow-up Attacks 1 | . . . . . 1 Damage Inflicted 1497 | . 320 338 . 209 630 Guns 630 | . 315 112 . 203 . Cannons . | . . . . . . Explosions 206 | . . 206 . . . Melee 630 | . . . . . 630 Ramming 31 | . 5 20 . 6 . Kinetic 337 | . 244 27 . 66 . Thermal 293 | . 71 85 . 137 . Explosive 206 | . . 206 . . . Electromagnetic . | . . . . . . Impact 630 | . . . . . 630 Slashing . | . . . . . . Piercing . | . . . . . . Highest Corruption . | . . . . . . Average Corruption . | . . . . . . Corruption Purged . | . . . . . . Corruption Blocked . | . . . . . . Overload Shots . | . . . . . . Overflow Damage 234 | . . 23 . . 211 Projectiles . | . . . . . . Explosions 23 | . . 23 . . . Melee 211 | . . . . . 211 Knockbacks 1 | . . . . . 1 Impact 1 | . . . . . 1 Kinetic . | . . . . . . Secondary . | . . . . . . Self-Inflicted Damage 10 | . . 9 . 1 . Shots 1 | . . 1 . . . Rammed 5 | . . 2 . 3 . Targets Rammed 10 | . 4 2 . 4 . Kicked 4 | . 4 . . . . Crushed 1 | . . . . 1 . Highest Temperature 529 | . 78 195 . 529 . Average Temperature 118 | . 25 65 . 188 . Received Heat Transfer 116 | . 36 . . . 80 Effects 4 | . . . . 4 . Shutdowns 2 | . . . . 2 . Energy Bleed 1 | . . . . 1 . Matter Decay 1 | . . . . 1 . Siege Activations . | . . . . . . Robots Corrupted 3 | . . . . . 3 Combat Hostiles 3 | . . . . . 3 Parts Fried 6 | . . . . . 6 Impact Corruptions 8 | . . . . . 8 Robots Melted . | . . . . . . Combat Hostiles . | . . . . . . Parts Melted . | . . . . . . Heat Transferred 453 | . 130 105 . 218 . Parts Sabotaged . | . . . . . . Parts Stolen . | . . . . . . Parts Stripped . | . . . . . . Power Chain Reactions . | . . . . . . Alert | -11 -10 -10 -10 -9 -8 ------- Run | Yrd Mat Min Exi Min Mat Peak Influence 230 | . 230 142 . 134 180 Initial 13 | . . . . . 13 Average 53 | . 57 41 . 79 92 Maximum Alert Level 1 | . 1 . . . . Low Security (%) 94 | 100 83 100 . 100 100 Level 1 5 | . 16 . . . . Level 2 . | . . . . . . Level 3 . | . . . . . . Level 4 . | . . . . . . Level 5 . | . . . . . . High Security . | . . . . . . Max Security . | . . . . . . Squads Dispatched 6 | . 2 . . 1 3 Investigation 1 | . . . . 1 . Extermination . | . . . . . . Reinforcement 3 | . 2 . . . 1 Assault . | . . . . . . Garrison 2 | . . . . . 2 Intercept . | . . . . . . Searches Triggered . | . . . . . . Construction Impeded . | . . . . . . Haulers Reinforced . | . . . . . . Active Scanning Responses . | . . . . . . Cargo Convoy Interrupts . | . . . . . . Stealth | -11 -10 -10 -10 -9 -8 --------- Run | Yrd Mat Min Exi Min Mat Distress Signals 3 | . 1 . . . 2 Communications Jammed . | . . . . . . Distress Signals . | . . . . . . Times Spotted 53 | . 21 13 . 8 11 Peak Tracking Total 6 | . 5 3 . 3 6 Tactical Retreats 7 | . 2 2 . . 3 Traps | -11 -10 -10 -10 -9 -8 ------- Run | Yrd Mat Min Exi Min Mat Traps Triggered . | . . . . . . Indirectly . | . . . . . . Trap Hack Attempts . | . . . . . . Triggered . | . . . . . . Disarmed . | . . . . . . Reprogrammed . | . . . . . . Reused . | . . . . . . Traps Extracted . | . . . . . . Installed . | . . . . . . Triggered . | . . . . . . Machines | -11 -10 -10 -10 -9 -8 ---------- Run | Yrd Mat Min Exi Min Mat Machines Disabled . | . . . . . . Max in Single Turn . | . . . . . . Machines Repaired . | . . . . . . Machines Dismantled . | . . . . . . Machines Sabotaged . | . . . . . . Overloaded Fab Kills . | . . . . . . Hacking | -11 -10 -10 -10 -9 -8 --------- Run | Yrd Mat Min Exi Min Mat Machines Accessed 12 | . 7 1 3 1 . Terminals 6 | . 6 . . . . Fabricators . | . . . . . . Repair Stations . | . . . . . . Recycling Units 1 | . 1 . . . . Scanalyzers . | . . . . . . Garrison Access . | . . . . . . Total Hacks 54 | . 21 1 31 1 . Successful 45 | . 12 1 31 1 . Failed 9 | . 9 . . . . Catastrophic 1 | . 1 . . . . Database Lockouts . | . . . . . . Manual 15 | . 14 . 1 . . Terminals 20 | . 20 . . . . Fabricators . | . . . . . . Repair Stations . | . . . . . . Recycling Units 1 | . 1 . . . . Scanalyzers . | . . . . . . Garrison Access . | . . . . . . Terminal Hacks 38 | . 5 1 31 1 . Record 30 | . . . 30 . . Robot Analysis 3 | . 3 . . . . Open Door 2 | . . 1 . 1 . Locate Traps 1 | . 1 . . . . Hauler Manifests 1 | . 1 . . . . Derelict Proto ID Bank 1 | . . . 1 . . Fabricator Hacks . | . . . . . . Repair Station Hacks . | . . . . . . Recycling Unit Hacks 1 | . 1 . . . . Retrieve Components 1 | . 1 . . . . Scanalyzer . | . . . . . . Garrison Access Hacks . | . . . . . . Unauthorized Hacks 6 | . 6 . . . . Terminals 6 | . 6 . . . . Track 1 | . 1 . . . . Botnet 4 | . 4 . . . . Operators 1 | . 1 . . . . Fabricators . | . . . . . . Repair Stations . | . . . . . . Recycling Units . | . . . . . . Scanalyzers . | . . . . . . Garrison Access . | . . . . . . Data Cores Recovered . | . . . . . . Used . | . . . . . . Hacking Detections 6 | . 6 . . . . Full Trace Events . | . . . . . . Feedback Events . | . . . . . . Feedback Blocked . | . . . . . . Robot Schematics Acquired . | . . . . . . Robots Built . | . . . . . . Authchips . | . . . . . . Time . | . . . . . . Total Robot Build Rating . | . . . . . . Part Schematics Acquired . | . . . . . . Parts Built . | . . . . . . Authchips . | . . . . . . Time . | . . . . . . Total Part Build Rating . | . . . . . . Parts Repaired . | . . . . . . Time . | . . . . . . Parts Recycled . | . . . . . . Recycled Matter . | . . . . . . Retrieved Matter . | . . . . . . Retrieved Components 10 | . 10 . . . . Parts Scanalyzed . | . . . . . . Part Schematics Acquired . | . . . . . . Parts Damaged . | . . . . . . Bothacking | -11 -10 -10 -10 -9 -8 ------------ Run | Yrd Mat Min Exi Min Mat Used RIF Installer . | . . . . . . Robots Hacked . | . . . . . . Non-combat . | . . . . . . Combat . | . . . . . . Robot Hacks Applied . | . . . . . . Relay Couplers Released . | . . . . . . Fabnet Peak Effective % . | . . . . . . Robots Rewired 3 | . . . 3 . . Allies Hacked . | . . . . . . Hacks Repelled . | . . . . . . Allies | -11 -10 -10 -10 -9 -8 -------- Run | Yrd Mat Min Exi Min Mat Total Allies 4 | . . 1 3 . . Largest Group 3 | . . 1 3 3 . Highest-Rated Group 37 | . . 31 37 37 . Highest-Rated Ally 31 | . . 31 21 21 . Total Orders . | . . . . . . Ally Attacks 24 | . . 9 . 15 . Total Damage 323 | . . 83 . 240 . Kills 8 | . . 2 . 6 . Allies Corrupted . | . . . . . . Allies Melted . | . . . . . . Intel | -11 -10 -10 -10 -9 -8 ------- Run | Yrd Mat Min Exi Min Mat Robot Analysis Total 3 | . 3 . . . . Derelict Logs Recovered 2 | . . 2 . . . Drone Launches . | . . . . . . Drone Recoveries . | . . . . . . Exploration | -11 -10 -10 -10 -9 -8 ------------- Run | Yrd Mat Min Exi Min Mat Turns Passed 4925 | 66 1353 1737 1056 501 212 Spaces Moved 2099 | 47 687 693 421 178 73 Core 3 | 3 . . . . . Treads 1386 | . 115 693 421 157 . Legs 616 | 44 572 . . . . Wheels . | . . . . . . Hover 94 | . . . . 21 73 Flight . | . . . . . . Fastest Speed 50 | 50 120 240 240 217 147 Average Speed 214 | 115 171 240 240 246 204 Slowest Speed 400 | 120 260 240 240 400 217 Overloaded Moves . | . . . . . . Propulsion Burnouts . | . . . . . . Robots Hopped . | . . . . . . Cave-ins Triggered . | . . . . . . Exploration Rate (%) 48 | 4 69 98 90 23 8 Regions Visited 5 Branch Regions 3 Pre-discovered Areas 2 | . . 1 1 . . Known Exits Taken . | . . . . . . Unknown Exits Taken 5 | 1 1 1 1 1 . Scrap Searched 2 | . . 2 . . . Spaces Dug 6 | . . 6 . . . Terrain Destroyed 31 | . . 30 . 1 . Melee . | . . . . . . Projectile 1 | . . . . 1 . AOE 30 | . . 30 . . . Terrain Rammed . | . . . . . . Walls Destroyed . | . . . . . . Machines Disabled . | . . . . . . Actions | -11 -10 -10 -10 -9 -8 --------- Run | Yrd Mat Min Exi Min Mat Total 2398 | 55 815 741 467 211 109 Wait 111 | . 66 27 . 3 15 Move 2094 | 46 686 692 420 177 73 Hop . | . . . . . . Pick Up 21 | 3 12 2 1 3 . Fast Attach 10 | 6 1 . . 1 2 Attach 7 | . 2 . . 2 3 Detach 1 | . . . . . 1 Swap 19 | . 10 2 2 5 . Drop 16 | . 9 2 . 5 . Fire 50 | . 25 14 . 11 . Melee 15 | . . . . . 15 Ram 1 | . . . . 1 . Kick 4 | . 4 . . . . Crush 5 | . . 2 . 3 . Escape Stasis . | . . . . . . Rewire 44 | . . . 44 . . Trap . | . . . . . . Miscellaneous . | . . . . . . Route ------- -11/Scrapyard -10/Materials (discovered 3 exits: [*Mat x2] / *Min) -10/Mines (discovered 3 exits: [*Mat x2] / *Exi) -10/Exiles -9/Mines -8/Materials History --------- Turn | Location | Event 2 | -11/Scrapyard | Met Revision 17 3 | -11/Scrapyard | Discovered new exit (range 16) 67 | -11/Scrapyard | Entered Materials 82 | -10/Materials | Discovered new exit (range 16) 301 | -10/Materials | Build established: Mutant 397 | -10/Materials | Discovered new exit (range 16) 528 | -10/Materials | Discovered new exit (range 10) 1420 | -10/Materials | Entered Mines 1423 | -10/Mines | Received a Mining Laser from a helpful Derelict 1447 | -10/Mines | Discovered new exit (range 13) 1910 | -10/Mines | Learned location of Recycling (-8) 1929 | -10/Mines | Learned Materials stockpile data 2445 | -10/Mines | Found the Drone Emporium 2495 | -10/Mines | Found Prototype Device 2975 | -10/Mines | Discovered new exit (range 13) 3145 | -10/Mines | Deemed a non-threat by the Exiles lab entrance 3147 | -10/Mines | Discovered new exit (range 5) 3157 | -10/Mines | Entered Exiles 3157 | -10/Exiles | Found Exiles lab destroyed 3723 | -10/Exiles | Learned location of Zion (-7) 3962 | -10/Exiles | Opened EX-Vault 3972 | -10/Exiles | Found Field Lobotomy Kit 4182 | -10/Exiles | Discovered new exit (range 14) 4213 | -10/Exiles | Entered Mines 4213 | -9/Mines | Accompanied by 3 allies 4314 | -9/Mines | Met a Derelict shopkeep closing up shop 4440 | -9/Mines | Discovered new exit (range 4) 4582 | -9/Mines | Assembled infested the area 4587 | -9/Mines | Assisted by a Guerilla fighting off Assembled 4647 | -9/Mines | Lost 3 parts (1n1u1w) 4714 | -9/Mines | Entered Materials 4714 | -8/Materials | Evolved 4 slots: Propulsion x1, Utility x2, Weapon x1 4725 | -8/Materials | Identified Bomb Drone Bay 4775 | -8/Materials | Garrison activated, responded to threat 4926 | -8/Materials | Self-destructed Last Messages --------------- 04886_ Destroyed Lgt. Ion Engine. 04886_ S-10 Pest system corrupted by crushing effect. 04886_ K-01 Serf collects debris. 04889_ Destroyed Flight Unit. 04889_ Destroyed Lgt. Assault Rifle. 04889_ Destroyed Flight Unit. 04889_ S-10 Pest system corrupted by crushing effect. 04889_ S-10 Pest destroyed. 04890_ K-01 Serf collects debris. 04899_ Sneak attack on R-06 Scavenger. 04899_ R-06 Scavenger knocked back. 04906_ Acquired Scythe. 04917_ ALERT: Hostiles spotted, dispatching reinforcements to Terminal M007. 04918_ Powered Hammer follow-up attack on S-10 Pest. 04919_ W-25 Informer sends out distress signal. 04922_ K-01 Serf collects debris. Map ----- +----------------------------------------------------+ | ?????????????????????????????????????????????????? | | ?????????????????????????????????????????????????? | | ?????????????????????????????????????????????????? | | ?????????????????????????????????????????????????? | | ?????????????????????????????????????????????????? | | ????????????????????????????????????????????????#? | | ?????????????????????????????????????????????????? | | ?????????????????????????????????????????????????? | | ????????????????????? ?????????????????????????? | | ????????????????????? ?????????????????????????? | | ????????????????????# ?????????????????????????? | | ????????????????????# #????????????????????????? | | ????????????????????# #???? ???????##?#????????? | | ????????????????????# #??"??"?? ????#???????#??? | | ????????????????????# #??????????#?#?#######???? | | ????????????????????# #???? ?????#?### ##### | | ????????? ########## ##???+########## | | ?????????? ? | | ??????????? ??? | | ???????????? ??? ! ##### | | ?????????????"" #?###############%* ##???? | | ?????????????""""" #??# #= #??##? | | ??????????""" """ #?## ! [ # #????? | | ??????? #?## !!! % %+ #??#?? | | ??????? w #### !!! %#= #????? | | ??????????#### ####k s@ +% !!! # #????? | | ?????????????#?????## ######## ######## #??#?? | | ???????????????????######??????###?????## # ???? | | ?????????????????????????????? ?????? ? # #????? | | ??????????????????????#?????????????????# #????? | | ??????????????????????????????? ????? ??+ + ???? | | ?????????????????????????? ?G????????? # #????? | | ??????????????????#?????????????# ??????# #????? | | ??????????????????????????? ????????????# #????? | | ?????????????????????????????+#????#???? ?#??? | | ??????????????????????? ????????? ?????? ?#??? | | ???????????????????????????????????? ??? T ?#??? | | ???????????????????????????????????????? ? ????? | | ??????????????????????????#????#?????????????????? | | ?????????????????????????????????????????????????? | | ?????????????????????????????????????????????????? | | ?????????????????????????????????????????????????? | | ?????????????????????????????????????????????????? | | ?????????????????????????????????????????????????? | | ?????????????????????????????????????????????????? | | ?????????????????????????????????????????????????? | | ?????????????????????????????????????????????????? | | ?????????????????????????????????????????????????? | | ?????????????????????????????????????????????????? | | ?????????????????????????????????????????????????? | +----------------------------------------------------+ Best States ------------- Heat Dissipation 31 Energy Generation 18 Energy Capacity 250 Matter Stores 300 Matter Capacity 300 Sight Range 16 Terrain Scan Range 14 Terrain Scan Density 10 Armor Coverage 150 Evasion (%) 55 Recoil Reduction 2 Item Schematics ----------------- None Robot Schematics ------------------ None Fabricated ------------ Nothing Alien Tech Used ----------------- None Achievements -------------- None Challenges ------------ None Game ------ Seed LauncherGyrokineticAirjet Manual? 0 Play Time 00:21:06 Cumulative 41.0 hours Start 2024.09.16 @ 16:01:59 End 2024.09.16 @ 16:25:12 Sessions 1 Manual Loads 0 Difficulty Rogue Special Mode None Game No. 77 Rogue 77 Adventurer 0 Explorer 0 Win Type - Total 0 Types 0/0/0/0/0/0/0/0/0 Lore% 15 Gallery% 34 Achievement% 30 Wizard Run 0 Options --------- Layout 1 ASCII 0 Keyboard 1 Movement Numpad Keybinds 0 Fullscreen 1 Font 24/Smallcaps Map View 50x35 Zoom Use 0% Tactical HUD 1 Map Filters NONE Filters NONE Steam 1 RUN: 3a56707d-1f7b-4a0d-ad07-3c428193f2b0